bitfinex/quotes_SOLUSD_20240913
["timestamp","ask_amount","ask_price","bid_price","bid_amount"]
[1726246420471,7.2966,137.05,136.99,0.25098]
[1726246420800,20.0,137.06,136.99,0.25098]
[1726246420979,21.33006438,137.06,136.99,0.25098]
[1726246421186,7.2967,137.05,136.99,0.25098]
[1726246421383,20.0,137.06,136.99,0.25098]
[1726246421682,1.33006438,137.05,136.99,0.25098]
[1726246422395,8.62686438,137.05,136.99,0.25098]
[1726246422602,1.33006438,137.04,136.99,0.25098]
[1726246423396,8.62716438,137.04,136.97,28.69217177]
[1726246423590,20.0,137.06,136.97,28.69217177]
[1726246423793,8.62696438,137.05,136.97,28.69217177]
[1726246424100,8.62696438,137.05,136.98,36.1109]
[1726246424273,7.2945,137.09,137.01,22.44207177]
[1726246424712,7.2945,137.09,137.03,0.25098]
[1726246425777,8.62516438,137.08,137.02,23.776884]
[1726246425978,7.2946,137.09,137.02,23.776884]
[1726246427398,7.2937,137.11,137.05,0.25098]
[1726246428286,7.2941,137.1,137.05,0.25098]
[1726246429207,7.2936,137.11,137.05,0.25098]
[1726246429883,8.62396438,137.1,137.05,0.12549]
[1726246430285,8.62396438,137.1,137.04,15.2726]
[1726246430507,7.2945,137.09,137.04,15.2726]
[1726246431405,1.33006438,137.08,137.04,15.2726]
[1726246431582,8.62556438,137.07,137.04,15.2726]
[1726246431893,7.2951,137.08,137.04,15.2726]
[1726246432278,8.62566438,137.07,137.04,15.2726]
[1726246432899,7.295,137.08,137.04,15.2726]
[1726246433484,7.2945,137.09,137.04,15.2726]
[1726246433780,28.62506438,137.08,137.04,15.2726]
[1726246434090,1.33006438,137.07,137.04,15.2726]
[1726246434286,7.2969,137.05,137.0,22.4636]
[1726246434489,1.33006438,137.04,137.0,22.4636]
[1726246434694,7.2979,137.03,136.97,16.1749]
[1726246434875,1.33006438,137.02,136.97,16.1749]
[1726246435678,7.2986,137.02,136.97,16.1749]
[1726246435875,7.2979,137.03,136.97,16.1749]
[1726246436291,1.33006438,137.02,136.97,16.1749]
[1726246436486,7.2979,137.03,136.97,16.1749]
[1726246436693,1.33006438,137.02,136.97,16.1749]
[1726246436876,7.2979,137.03,136.97,16.1749]
[1726246437281,1.33006438,137.02,136.97,16.1749]
[1726246437615,7.2979,137.03,136.97,16.1749]
[1726246438087,20.0,137.04,136.98,0.25098]
[1726246438692,27.2973,137.04,136.98,0.25098]
[1726246438905,20.0,137.03,136.98,24.027864]
[1726246439290,20.0,137.03,136.98,0.25098]
[1726246439895,18.2389,137.07,136.97,16.1749]
[1726246439896,20.0,137.01,136.97,16.1749]
[1726246440101,8.62966438,137.0,136.94,15.3938]
[1726246440392,7.2998,136.99,136.94,15.3938]
[1726246440595,1.33006438,136.99,136.94,15.3938]
[1726246440803,7.2998,136.99,136.94,15.3938]
[1726246441406,7.2994,137.0,136.94,15.3938]
[1726246441595,20.0,137.02,136.94,15.3938]
[1726246441797,1.33006438,137.01,136.94,15.3938]
[1726246442313,7.2997,137.0,136.94,15.3938]
[1726246442615,1.33006438,136.99,136.91,16.2211]
[1726246442907,43.776884,137.0,136.91,16.2211]
[1726246442908,1.33006438,136.98,136.91,16.2211]
[1726246443216,21.33006438,136.98,136.91,16.2211]
[1726246443710,48.317084,136.97,136.91,0.45501]
[1726246443892,20.0,136.94,136.91,0.45501]
[1726246444303,7.3018,136.96,136.91,0.45501]
[1726246444502,20.0,136.95,136.91,0.45501]
[1726246444982,28.63206438,136.95,136.91,0.45501]
[1726246446887,7.3025,136.94,136.91,0.45501]
[1726246447300,8.63216438,136.95,136.91,0.45501]
[1726246447494,20.0,136.94,136.91,0.45501]
[1726246449492,6.41299,136.97,136.91,0.45501]
[1726246449493,20.0,136.96,136.91,0.45501]
[1726246449693,7.3014,136.96,136.91,0.45501]
[1726246449924,21.33006438,136.95,136.91,0.45501]
[1726246450216,20.0,136.95,136.91,0.45501]
[1726246450415,20.25098,136.99,136.91,0.45501]
[1726246450590,0.12549,136.98,136.91,0.45501]
[1726246450790,1.45555438,136.98,136.91,0.45501]
[1726246451097,7.3017,136.96,136.91,0.45501]
[1726246451297,21.33006438,136.95,136.91,0.45501]
[1726246451793,20.0,136.95,136.91,0.45501]
[1726246451990,0.12549,136.98,136.91,22.89708177]
[1726246451991,7.3005,136.98,136.91,22.89708177]
[1726246452212,7.3005,136.98,136.92,23.902374]
[1726246452802,8.63086438,136.97,136.92,23.902374]
[1726246452997,7.3008,136.97,136.92,23.902374]
[1726246453896,7.3004,136.98,136.92,23.902374]
[1726246454422,1.33006438,136.97,136.91,6.73141]
[1726246454592,7.3019,136.95,136.91,6.73141]
[1726246455802,1.33006438,136.94,136.91,0.45501]
[1726246456313,7.303,136.93,136.91,0.45501]
[1726246456524,20.0,136.92,136.91,0.45501]
[1726246456696,52.78691838,136.92,136.91,0.45501]
[1726246456895,7.3056,136.88,136.87,0.2664516]
[1726246457409,44.027864,136.92,136.87,0.2664516]
[1726246457719,7.305,136.9,136.87,0.2664516]
[1726246457904,1.33006438,136.89,136.87,0.2664516]
[1726246458104,23.776884,136.96,136.87,0.2664516]
[1726246458311,1.45555438,136.95,136.87,0.2664516]
[1726246458621,7.3031,136.93,136.87,0.2664516]
[1726246458822,1.45555438,136.95,136.87,0.2664516]
[1726246458823,8.63376438,136.92,136.87,0.2664516]
[1726246459306,1.33006438,136.91,136.87,0.2664516]
[1726246459512,7.3037,136.92,136.87,0.2664516]
[1726246459716,7.3036,136.92,136.87,0.2664516]
[1726246460523,7.3031,136.93,136.87,0.2664516]
[1726246460863,7.3026,136.94,136.87,0.2664516]
[1726246461032,23.776884,136.96,136.87,15.4959516]
[1726246461333,7.3015,136.96,136.88,59.95321788]
[1726246461537,7.3015,136.96,136.9,0.12549]
[1726246461701,24.3495,137.0,136.89,6.0827]
[1726246461702,7.3021,136.95,136.89,6.0827]
[1726246461904,7.3021,136.95,136.9,0.12549]
[1726246462329,7.3021,136.95,136.89,6.0827]
[1726246462826,1.33006438,136.94,136.87,15.4959516]
[1726246463202,7.3036,136.92,136.87,15.4959516]
[1726246463424,1.33006438,136.91,136.87,15.4959516]
[1726246463908,8.63426438,136.91,136.87,15.4959516]
[1726246464102,1.33006438,136.9,136.87,15.4959516]
[1726246465019,7.3041,136.91,136.87,15.4959516]
[1726246465331,18.2568,136.94,136.87,15.4959516]
[1726246465332,7.3036,136.92,136.87,15.4959516]
[1726246465542,8.63416438,136.91,136.87,15.4959516]
[1726246465704,7.3041,136.91,136.87,15.4959516]
[1726246465899,7.3049,136.9,136.87,15.4959516]
[1726246466215,7.3042,136.91,136.87,15.4959516]
[1726246466627,7.3052,136.89,136.87,0.2664516]
[1726246466807,1.33006438,136.9,136.87,0.2664516]
[1726246466808,8.63566438,136.88,136.87,0.2664516]
[1726246467004,7.3056,136.88,136.87,0.2664516]
[1726246467314,27.3056,136.88,136.87,0.2664516]
[1726246468508,20.0,136.88,136.87,0.2664516]
[1726246468736,21.33006438,136.88,136.87,0.2664516]
[1726246469303,20.0,136.88,136.87,0.2664516]
[1726246469502,7.3047,136.9,136.87,0.2664516]
[1726246469936,20.0,136.89,136.87,0.2664516]
[1726246472931,7.3051,136.89,136.87,0.2664516]
[1726246473321,7.3048,136.9,136.87,0.2664516]
[1726246473521,20.0,136.89,136.87,0.2664516]
[1726246474031,7.3048,136.9,136.87,0.2664516]
[1726246474032,20.0,136.9,136.87,0.2664516]
[1726246474220,7.304,136.91,136.87,0.2664516]
[1726246478142,7.3033,136.93,136.87,6.5548516]
[1726246478436,20.0,136.92,136.87,6.5548516]
[1726246479419,7.3025,136.94,136.88,0.25098]
[1726246479742,7.3021,136.95,136.89,15.214]
[1726246480039,8.63256438,136.94,136.89,15.214]
[1726246480238,7.3025,136.94,136.89,15.214]
[1726246480637,1.33006438,136.97,136.89,15.214]
[1726246480638,8.63306438,136.93,136.89,15.214]
[1726246480839,7.3036,136.92,136.89,15.214]
[1726246481138,1.33006438,136.93,136.89,15.214]
[1726246481139,7.3031,136.93,136.89,15.214]
[1726246483044,7.302,136.95,136.89,15.214]
[1726246483223,20.0,136.94,136.89,15.214]
[1726246483637,27.3024,136.94,136.89,15.214]
[1726246484028,7.3036,136.92,136.89,15.214]
[1726246484843,20.0,136.94,136.87,6.5548516]
[1726246485439,7.3037,136.92,136.87,6.5548516]
[1726246485638,7.3031,136.93,136.87,6.5548516]
[1726246486254,8.63316438,136.93,136.88,0.12549]
[1726246486540,7.3031,136.93,136.88,0.12549]
[1726246486847,7.3026,136.94,136.88,24.027864]
[1726246487061,7.302,136.95,136.88,24.027864]
[1726246487347,27.3012,136.97,136.9,24.027864]
[1726246487639,7.3015,136.96,136.9,24.027864]
[1726246488147,20.0,136.95,136.9,24.027864]
[1726246488519,7.301,136.97,136.9,24.027864]
[1726246488955,20.0,136.96,136.9,46.4817277]
[1726246489756,14.92098218,136.99,136.91,6.3243]
[1726246489954,27.3006,136.98,136.92,24.027864]
[1726246490443,7.3009,136.97,136.92,24.027864]
[1726246492424,27.3005,136.98,136.92,24.027864]
[1726246492628,7.3009,136.97,136.92,24.027864]
[1726246495054,7.3003,136.98,136.92,24.027864]
[1726246495427,7.3008,136.97,136.92,24.027864]
[1726246496247,7.3008,136.97,136.92,0.25098]
[1726246496453,7.3015,136.96,136.92,0.25098]
[1726246497367,7.301,136.97,136.92,24.027864]
[1726246499948,20.0,137.0,136.92,0.25098]
[1726246500252,7.301,136.97,136.92,24.027864]
[1726246500658,20.0,137.0,136.93,15.0409]
[1726246500834,27.3003,136.98,136.93,15.0409]
[1726246501158,20.0,136.97,136.93,15.0409]
[1726246502561,7.3003,136.98,136.93,15.0409]
[1726246502758,7.3,136.99,136.94,0.12549]
[1726246503064,7.3003,136.98,136.94,0.12549]
[1726246503245,7.3003,136.98,136.93,15.0409]
[1726246503246,18.2496,136.99,136.93,15.0409]
[1726246503445,1.33006438,136.97,136.93,15.0409]
[1726246504560,7.3016,136.96,136.93,15.0409]
[1726246506363,7.3022,136.95,136.93,15.0409]
[1726246506655,20.0,136.98,136.91,6.3243]
[1726246506858,21.33006438,136.98,136.91,6.3243]
[1726246507245,7.3019,136.95,136.91,6.3243]
[1726246509052,7.3015,136.96,136.91,6.3243]
[1726246511047,21.33006438,136.98,136.91,6.3243]
[1726246511048,28.63076438,136.98,136.91,6.3243]
[1726246511363,7.3012,136.97,136.91,6.3243]
[1726246511566,20.0,136.96,136.91,6.3243]
[1726246512952,7.3014,136.96,136.91,6.3243]
[1726246518042,20.1260327,136.99,136.91,6.3243]
[1726246518043,8.63196438,136.95,136.91,6.3243]
[1726246518248,7.3019,136.95,136.91,6.3243]
[1726246518867,20.0,136.96,136.91,6.3243]
[1726246519249,27.3014,136.96,136.91,6.3243]
[1726246519452,8.63196438,136.95,136.91,6.3243]
[1726246519970,27.3016,136.96,136.91,6.3243]
[1726246523988,7.3019,136.95,136.91,6.3243]
[1726246524346,7.3025,136.94,136.91,6.3243]
[1726246524661,20.0,136.97,136.91,6.3243]
[1726246524662,7.3023,136.95,136.91,6.3243]
[1726246526177,7.3015,136.96,136.91,6.3243]
[1726246526395,8.63156438,136.96,136.91,6.3243]
[1726246528952,7.3015,136.96,136.91,6.3243]
[1726246529161,7.3015,136.96,136.91,8.3243]
[1726246533883,8.63206438,136.95,136.91,8.3243]
[1726246534100,7.3033,136.93,136.91,2.0]
[1726246534303,1.33006438,136.95,136.91,2.0]
[1726246534304,28.63356438,136.92,136.91,2.0]
[1726246534485,28.63356438,136.92,136.89,0.1257352]
[1726246534486,27.3046,136.9,136.89,0.1257352]
[1726246534802,27.3046,136.9,136.86,16.0029]
[1726246534804,27.3054,136.89,136.86,16.0029]
[1726246534972,27.3055,136.89,136.86,16.0029]
[1726246536398,28.63416438,136.91,136.86,16.0029]
[1726246536908,20.0,136.89,136.86,16.0029]
[1726246538198,8.63586438,136.88,136.85,0.2517679]
[1726246538386,20.0,136.92,136.85,0.2517679]
[1726246538387,8.63626438,136.87,136.85,0.2517679]
[1726246538572,7.3062,136.87,136.85,0.2517679]
[1726246538990,21.33006438,136.9,136.85,0.2517679]
[1726246539195,20.0,136.88,136.85,0.2517679]
[1726246539779,7.3057,136.88,136.85,0.2517679]
[1726246540099,7.3058,136.88,136.85,0.2517679]
[1726246541874,1.33006438,136.87,136.85,0.2517679]
[1726246542172,7.3058,136.88,136.85,0.2517679]
[1726246542985,20.0,136.88,136.85,0.2517679]
[1726246543177,7.3051,136.89,136.85,0.2517679]
[1726246543380,20.0,136.88,136.85,0.2517679]
[1726246544798,20.0,136.91,136.85,0.2517679]
[1726246545103,7.3061,136.88,136.85,0.2517679]
[1726246546180,7.3062,136.87,136.85,0.2517679]
[1726246546387,7.306,136.88,136.85,0.2517679]
[1726246547179,7.3062,136.87,136.85,0.2517679]
[1726246548174,7.3065,136.87,136.85,0.2517679]
[1726246548374,1.33006438,136.86,136.85,0.2517679]
[1726246548702,7.3067,136.86,136.85,0.2517679]
[1726246548881,27.3067,136.86,136.85,0.2517679]
[1726246549698,27.3067,136.86,136.81,0.2517679]
[1726246549700,7.308,136.84,136.81,0.2517679]
[1726246550174,7.3088,136.82,136.81,0.2517679]
[1726246550679,7.3083,136.83,136.81,0.2517679]
[1726246551101,20.0,136.83,136.81,0.2517679]
[1726246552001,7.3079,136.84,136.81,0.2517679]
[1726246552002,20.0,136.84,136.81,0.2517679]
[1726246552198,20.0,136.85,136.81,0.2517679]
[1726246552498,20.0,136.84,136.81,0.2517679]
[1726246553006,7.3078,136.84,136.81,0.2517679]
[1726246553494,8.63836438,136.83,136.81,0.2517679]
[1726246555802,1.33006438,136.83,136.81,0.2517679]
[1726246555989,28.63836438,136.83,136.81,0.2517679]
[1726246556399,8.63836438,136.83,136.81,0.2517679]
[1726246556701,20.0,136.83,136.81,0.2517679]
[1726246557090,7.3073,136.85,136.81,0.2517679]
[1726246557297,20.0,136.85,136.81,0.2517679]
[1726246557482,27.3073,136.85,136.81,0.2517679]
[1726246558286,7.3068,136.86,136.81,0.2517679]
[1726246558495,20.0,136.85,136.81,0.2517679]
[1726246558689,27.3072,136.85,136.81,0.2517679]
[1726246560930,1.33006438,136.84,136.81,0.2517679]
[1726246561282,1.33006438,136.86,136.81,0.2517679]
[1726246561612,1.33006438,136.85,136.81,0.2517679]
[1726246561814,7.3085,136.83,136.81,0.2517679]
[1726246562197,20.0,136.87,136.81,0.2517679]
[1726246562198,7.3088,136.82,136.81,0.2517679]
[1726246562404,7.3085,136.83,136.81,0.2517679]
[1726246563014,7.308,136.84,136.81,0.2517679]
[1726246563303,8.63806438,136.84,136.81,0.2517679]
[1726246564411,7.308,136.84,136.81,0.2517679]
[1726246564623,8.63836438,136.83,136.81,0.2517679]
[1726246564792,7.3083,136.83,136.81,0.2517679]
[1726246565501,7.308,136.84,136.81,0.2517679]
[1726246566201,18.2671,136.86,136.81,0.2517679]
[1726246566202,20.0,136.88,136.81,0.2517679]
[1726246566515,20.0,136.85,136.81,0.2517679]
[1726246571406,7.3072,136.85,136.81,0.2517679]
[1726246571802,8.63726438,136.85,136.81,0.2517679]
[1726246572001,7.3072,136.85,136.81,0.2517679]
[1726246572728,7.3068,136.86,136.81,0.2517679]
[1726246573020,28.63726438,136.85,136.81,0.2517679]
[1726246573225,27.3072,136.85,136.81,0.2517679]
[1726246575411,20.0,136.85,136.81,0.2517679]
[1726246575728,7.3072,136.85,136.81,0.2517679]
[1726246577810,7.3069,136.86,136.81,0.2517679]
[1726246578010,20.0,136.85,136.81,0.2517679]
[1726246579931,7.3073,136.85,136.81,0.2517679]
[1726246580433,7.3069,136.86,136.81,0.2517679]
[1726246580730,20.0,136.85,136.81,0.2517679]
[1726246581647,7.3069,136.86,136.81,0.2517679]
[1726246581835,7.3063,136.87,136.82,0.12549]
[1726246582623,7.3067,136.86,136.82,0.12549]
[1726246583015,8.63736438,136.85,136.81,6.8319679]
[1726246583217,7.3073,136.85,136.81,6.8319679]
[1726246585532,7.3086,136.83,136.81,0.2517679]
[1726246589829,7.3088,136.82,136.81,0.2517679]
[1726246590037,8.63886438,136.82,136.81,0.2517679]
[1726246590232,7.3088,136.82,136.81,0.2517679]
[1726246591638,20.0,136.86,136.81,0.2517679]
[1726246591848,7.3065,136.87,136.81,0.2517679]
[1726246592553,7.3078,136.84,136.81,0.2517679]
[1726246592839,1.33006438,136.83,136.81,0.2517679]
[1726246593008,21.33006438,136.86,136.81,0.2517679]
[1726246593211,1.33006438,136.85,136.81,0.2517679]
[1726246594026,7.3087,136.83,136.81,0.2517679]
[1726246594228,7.3079,136.84,136.81,0.2517679]
[1726246594433,1.33006438,136.83,136.81,0.2517679]
[1726246596420,7.3079,136.84,136.81,0.2517679]
[1726246597849,7.3074,136.85,136.81,0.2517679]
[1726246602843,8.63746438,136.85,136.81,0.2517679]
[1726246603542,7.3078,136.84,136.81,0.2517679]
[1726246615032,1.33006438,136.83,136.81,0.2517679]
[1726246615352,7.3078,136.84,136.81,0.2517679]
[1726246615537,1.33006438,136.83,136.81,0.2517679]
[1726246615851,7.3078,136.84,136.81,0.2517679]
[1726246616648,1.33006438,136.83,136.81,0.2517679]
[1726246617347,7.3078,136.84,136.81,0.2517679]
[1726246617849,1.33006438,136.83,136.81,0.2517679]
[1726246620353,8.63836438,136.83,136.81,0.2517679]
[1726246620553,1.33006438,136.82,136.81,0.2517679]
[1726246620734,8.63886438,136.82,136.81,0.2517679]
[1726246620951,28.63886438,136.82,136.81,0.2517679]
[1726246621342,28.76435438,136.82,136.81,0.2517679]
[1726246621548,27.43429,136.82,136.81,0.2517679]
[1726246623654,27.3088,136.82,136.81,0.2517679]
[1726246624041,20.0,136.82,136.81,0.2517679]
[1726246624742,7.3079,136.84,136.81,0.2517679]
[1726246624942,7.3084,136.83,136.81,0.2517679]
[1726246625987,1.33006438,136.82,136.81,0.2517679]
[1726246626158,7.3084,136.83,136.81,0.2517679]
[1726246626470,7.3081,136.84,136.81,0.2517679]
[1726246626648,7.3083,136.83,136.81,0.2517679]
[1726246628738,1.33006438,136.82,136.81,0.2517679]
[1726246628941,7.3083,136.83,136.81,0.2517679]
[1726246629567,7.308,136.84,136.81,0.2517679]
[1726246631852,7.3083,136.83,136.81,0.2517679]
[1726246633500,1.33006438,136.85,136.81,0.2517679]
[1726246633768,28.63886438,136.82,136.81,0.2517679]
[1726246635063,27.3088,136.82,136.81,0.2517679]
[1726246642478,73.151174,136.82,136.81,0.2517679]
[1726246642650,73.276664,136.82,136.81,0.2517679]
[1726246643577,20.0,136.82,136.81,0.2517679]
[1726246644255,7.3088,136.82,136.81,0.2517679]
[1726246644453,7.3086,136.83,136.81,0.2517679]
[1726246644668,20.0,136.82,136.81,0.2517679]
[1726246644865,27.3088,136.82,136.81,0.2517679]
[1726246645782,20.0,136.82,136.81,0.2517679]
[1726246647270,27.3088,136.82,136.81,0.2517679]
[1726246650769,27.43429,136.82,136.81,0.2517679]
[1726246651278,27.3088,136.82,136.81,0.2517679]
[1726246651965,20.0,136.82,136.81,0.2517679]
[1726246652566,27.3088,136.82,136.81,0.2517679]
[1726246661868,20.0,136.82,136.81,0.2517679]
[1726246663396,20.0,136.84,136.81,0.2517679]
[1726246666798,1.33006438,136.83,136.81,0.2517679]
[1726246668189,1.33006438,136.82,136.81,0.2517679]
[1726246671098,7.3083,136.83,136.81,0.2517679]
[1726246674599,7.3088,136.82,136.81,0.2517679]
[1726246674983,31.085684,136.82,136.81,0.2517679]
[1726246676912,7.3084,136.83,136.81,0.2517679]
[1726246680690,1.33006438,136.82,136.81,0.2517679]
[1726246681020,7.3084,136.83,136.81,0.2517679]
[1726246681215,1.33006438,136.82,136.81,0.2517679]
[1726246682008,7.3084,136.83,136.81,0.2517679]
[1726246682285,7.3088,136.82,136.81,0.2517679]
[1726246683294,31.085384,136.83,136.81,0.2517679]
[1726246683608,7.3085,136.83,136.81,0.2517679]
[1726246686113,20.0,136.84,136.81,0.2517679]
[1726246687607,7.3078,136.84,136.81,0.2517679]
[1726246687817,20.0,136.83,136.81,0.2517679]
[1726246688597,7.3083,136.83,136.81,0.2517679]
[1726246689317,21.98,136.86,136.81,0.2517679]
[1726246689318,7.3078,136.84,136.81,0.2517679]
[1726246689493,20.0,136.83,136.81,0.2517679]
[1726246689815,21.33006438,136.83,136.81,0.2517679]
[1726246689995,1.33006438,136.82,136.81,0.2517679]
[1726246696906,14.84294124,136.88,136.81,0.2517679]
[1726246697115,7.3059,136.88,136.81,16.8671679]
[1726246698230,7.3063,136.87,136.81,16.8671679]
[1726246698922,23.776884,136.86,136.81,16.8671679]
[1726246702023,1.33006438,136.85,136.81,16.8671679]
[1726246702619,23.776884,136.84,136.81,16.8671679]
[1726246703015,20.0,136.85,136.81,16.8671679]
[1726246703498,20.0,136.88,136.81,16.8671679]
[1726246703696,23.776884,136.87,136.81,16.8671679]
[1726246703899,20.0,136.86,136.81,16.8671679]
[1726246707016,21.33006438,136.86,136.81,16.8671679]
[1726246711418,20.0,136.86,136.81,16.8671679]
[1726246711618,21.98,136.85,136.81,16.8671679]
[1726246711801,20.0,136.86,136.81,16.8671679]
[1726246714927,1.33006438,136.85,136.81,16.8671679]
[1726246715625,8.63736438,136.85,136.81,16.8671679]
[1726246715831,20.0,136.83,136.81,0.2517679]
[1726246716127,1.33006438,136.82,136.81,0.2517679]
[1726246721732,21.33006438,136.82,136.81,0.2517679]
[1726246735529,74.39574838,136.82,136.81,0.2517679]
[1726246735739,74.39574838,136.82,136.77,0.2517679]
[1726246735740,73.066384,136.81,136.77,0.2517679]
[1726246735919,30.62016438,136.8,136.77,0.2517679]
[1726246736125,45.10694838,136.79,136.77,0.2517679]
[1726246736335,52.41754838,136.79,136.77,0.2517679]
[1726246737455,1.33006438,136.78,136.77,0.2517679]
[1726246742051,21.33006438,136.78,136.77,0.2517679]
[1726246744341,20.0,136.78,136.77,0.2517679]
[1726246745457,28.2413,136.84,136.77,0.2517679]
[1726246745646,21.33006438,136.83,136.77,0.2517679]
[1726246746954,28.63836438,136.83,136.77,0.2517679]
[1726246747747,20.0,136.81,136.77,0.2517679]
[1726246750242,1.33006438,136.8,136.77,0.2517679]
[1726246750551,1.33006438,136.79,136.77,0.2517679]
[1726246750931,21.33006438,136.79,136.77,0.2517679]
[1726246752155,20.0,136.78,136.77,0.2517679]
[1726246753459,43.776884,136.78,136.77,0.2517679]
[1726246753752,73.068584,136.77,136.73,0.2517679]
[1726246753936,1.33006438,136.76,136.73,0.2517679]
[1726246754337,43.776884,136.77,136.73,0.2517679]
[1726246754833,65.756884,136.77,136.73,0.2517679]
[1726246755036,1.33006438,136.76,136.73,0.2517679]
[1726246759161,65.756884,136.74,136.73,0.2517679]
[1726246759530,1.33006438,136.76,136.69,0.2517679]
[1726246759531,20.0,136.72,136.69,0.2517679]
[1726246759736,1.33006438,136.71,136.69,0.2517679]
[1726246759939,43.776884,136.7,136.69,0.2517679]
[1726246762165,65.756884,136.7,136.69,0.2517679]
[1726246765571,65.756884,136.7,136.65,0.2517679]
[1726246765572,49.2959,136.69,136.65,0.2517679]
[1726246765749,1.33006438,136.68,136.65,0.2517679]
[1726246765954,1.33006438,136.67,136.65,0.2517679]
[1726246766869,25.10694838,136.68,136.65,0.2517679]
[1726246767069,20.0,136.67,136.65,0.2517679]
[1726246767969,21.33006438,136.68,136.65,0.2517679]
[1726246770884,23.776884,136.67,136.65,0.2517679]
[1726246771177,20.0,136.68,136.65,0.2517679]
[1726246773561,25.10694838,136.67,136.65,0.2517679]
[1726246774268,20.0,136.68,136.65,0.2517679]
[1726246774772,25.10694838,136.67,136.65,0.2517679]
[1726246776375,23.776884,136.67,136.65,0.2517679]
[1726246778257,20.0,136.69,136.65,0.2517679]
[1726246780169,10.2517679,136.79,136.65,0.2517679]
[1726246780170,6.46,136.74,136.66,0.25098]
[1726246780357,13.7736,136.74,136.66,0.25098]
[1726246780555,7.3139,136.73,136.66,0.25098]
[1726246780875,1.33006438,136.72,136.66,0.25098]
[1726246781482,21.33006438,136.72,136.66,0.25098]
[1726246781959,21.33006438,136.72,136.65,15.7466679]
[1726246781960,23.776884,136.71,136.65,15.7466679]
[1726246782159,21.33006438,136.7,136.65,15.7466679]
[1726246788791,20.0,136.68,136.65,0.2517679]
[1726246789083,1.33006438,136.67,136.65,0.2517679]
[1726246791183,20.0,136.68,136.65,0.2517679]
[1726246792592,20.0,136.7,136.65,0.2517679]
[1726246792794,27.314,136.73,136.65,0.2517679]
[1726246793591,20.0,136.71,136.65,0.2517679]
[1726246794088,23.776884,136.7,136.65,0.2517679]
[1726246794587,20.0,136.69,136.65,0.2517679]
[1726246794973,29.19161718,136.76,136.67,14.36566784]
[1726246795186,21.98,136.76,136.68,0.25098]
[1726246795367,29.2927,136.75,136.66,37.17125784]
[1726246795572,1.33006438,136.74,136.67,0.12549]
[1726246795790,1.33006438,136.74,136.67,0.25098]
[1726246796199,20.0,136.74,136.67,0.25098]
[1726246796572,23.776884,136.73,136.67,0.25098]
[1726246796874,20.0,136.72,136.67,0.25098]
[1726246800787,20.0,136.74,136.67,0.25098]
[1726246800993,20.0,136.75,136.67,14.61664784]
[1726246802400,20.0,136.73,136.67,0.25098]
[1726246804097,20.0,136.75,136.67,14.61664784]
[1726246804785,7.46338508,136.79,136.71,31.20944784]
[1726246804989,0.2517679,136.79,136.71,31.20944784]
[1726246805785,7.311,136.78,136.71,16.84378]
[1726246805986,27.5625679,136.79,136.71,16.84378]
[1726246806300,0.2517679,136.79,136.73,0.25098]
[1726246806502,0.2517679,136.79,136.73,14.61664784]
[1726246806681,0.2517679,136.79,136.74,0.12549]
[1726246806998,0.2517679,136.79,136.73,0.25098]
[1726246807579,29.5426679,136.79,136.72,0.12549]
[1726246807805,29.5426679,136.79,136.71,16.5928]
[1726246807806,28.64116438,136.78,136.71,16.5928]
[1726246807983,28.64106438,136.78,136.71,16.5928]
[1726246808180,20.0,136.76,136.71,16.5928]
[1726246808395,20.0,136.74,136.71,16.5928]
[1726246808584,1.33006438,136.73,136.71,16.5928]
[1726246809591,20.0,136.77,136.71,16.5928]
[1726246809791,0.2517679,136.79,136.71,16.5928]
[1726246810201,20.0,136.78,136.71,16.5928]
[1726246810506,20.0,136.76,136.71,16.5928]
[1726246810808,20.0,136.78,136.72,0.25098]
[1726246811006,24.0286519,136.79,136.72,0.25098]
[1726246811007,0.2517679,136.79,136.72,0.25098]
[1726246811210,1.58183228,136.79,136.72,0.25098]
[1726246811584,0.2517679,136.79,136.72,0.25098]
[1726246811785,0.2517679,136.79,136.73,0.12549]